[Event "Lueneburg Open-B 2019"]
[Site "Lueneburg"]
[Date "2019.08.04"]
[Round "2.7"]
[White "Rempe, Janne"]
[Black "Domschke, Stephan"]
[Result "*"]
[ECO "D02"]
[WhiteElo "1594"]
[BlackElo "1671"]
[Annotator "NA"]
[PlyCount "43"]
[EventDate "2019.08.03"]
[EventType "swiss"]
[EventCountry "GER"]
[SourceTitle "playchess.com"]
[Source "ChessBase"]
[SourceQuality "1"]
[TimeControl "40/5400+30:1800+30"]

1. d4 {[%emt 0:00:00]} Nf6 {[%emt 0:00:00]} 2. Nf3 {[%emt 0:00:00]} d5 {[%emt 0:00:10]} 3. Bf4 {[%emt 0:00:15]} e6 {[%emt 0:00:49]} 4. e3 {[%emt 0:00:50]} c5 {[%emt 0:01:25]} 5. c3 {[%emt 0:00:36]} Nbd7 {[%emt 0:01:18]} 6. Nbd2 {[%emt 0:00:49]} Be7 {[%emt 0:01:08]} 7. h3 {[%emt 0:01:00]} Qb6 {[%emt 0:01:17]} 8. b3 {[%emt 0:01:06]} Ne4 {[%emt 0:02:22]} 9. Qc2 {[%emt 0:01:22]} f5 {[%emt 0:02:29]} 10. g4 {[%emt 0:03:12]} O-O {[%emt 0:01:42]} 11. gxf5 {[%emt 0:03:27]} exf5 {[%emt 0:02:25]} 12. Rg1 {[%emt 0:00:18]} cxd4 {[%emt 0:06:38]} 13. Nxd4 {[%emt 0:02:31]} Nd6 {[%emt 0:07:51]} 14. Ne6 {[%emt 0:07:17]} Rf7 {[%emt 0:00:48]} 15. c4 {[%emt 0:05:38]} Nf6 {[%emt 0:07:12]} 16. c5 {[%emt 0:01:28]} Qc6 {[%emt 0:01:48]} 17. Nd4 {[%emt 0:01:52]} Qd7 {[%emt 0:03:20]} 18. cxd6 {[%emt 0:01:33]} Bxd6 {[%emt 0:00:01]} 19. Bxd6 {[%emt 0:00:49]} Qxd6 {[%emt 0:00:02]} 20. Nxf5 {[%emt 0:00:41]} Bxf5 {[%emt 0:01:06]} 21. Qxf5 {[%emt 0:00:09]} Ne4 {[%emt 0:00:49]} 22. Qh5 {[%emt 1:06:07]} *

[Event "Lueneburg Open-B 2019"]
[Site "Lueneburg"]
[Date "2019.08.04"]
[Round "2.8"]
[White "Hinke, Gerhard"]
[Black "Buetow, Ingo"]
[Result "0-1"]
[ECO "B01"]
[WhiteElo "1476"]
[BlackElo "1747"]
[Annotator "NA"]
[PlyCount "88"]
[EventDate "2019.08.03"]
[EventType "swiss"]
[EventCountry "GER"]
[SourceTitle "playchess.com"]
[Source "ChessBase"]
[SourceQuality "1"]
[TimeControl "40/5400+30:1800+30"]

1. e4 {[%emt 0:00:00]} d5 {[%emt 0:00:00]} 2. exd5 {[%emt 0:00:00]} Qxd5 {[%emt 0:00:00]} 3. Nc3 {[%emt 0:00:24]} Qd6 {[%emt 0:00:00]} 4. d4 {[%emt 0:00:55]} Nf6 {[%emt 0:00:02]} 5. Bc4 {[%emt 0:02:06]} c6 {[%emt 0:00:33]} 6. Nge2 {[%emt 0:00:18]} Bf5 {[%emt 0:00:31]} 7. Bf4 {[%emt 0:01:11]} Qb4 {[%emt 1:32:24]} 8. O-O {[%emt 0:01:07]} Qxc4 {[%emt 0:00:00]} 9. b3 {[%emt 0:01:11]} Qb4 {[%emt 0:00:00]} 10. a3 {[%emt 0:00:42]} Qb6 {[%emt 0:00:00]} 11. Ng3 {[%emt 0:00:46]} Bg6 {[%emt 0:00:00]} 12. h4 {[%emt 0:02:16]} h6 {[%emt 0:00:00]} 13. Re1 {[%emt 0:00:44]} Na6 {[%emt 0:00:00]} 14. Qf3 {[%emt 0:02:17]} Qd8 {[%emt 0:00:00]} 15. Be5 {[%emt 0:02:53]} e6 {[%emt 0:00:00]} 16. h5 {[%emt 0:00:47]} Bxc2 {[%emt 0:00:00]} 17. Re2 {[%emt 0:00:13]} Bxb3 {[%emt 0:00:00]} 18. Rb1 {[%emt 0:00:21]} Bd5 {[%emt 0:00:00]} 19. Nxd5 {[%emt 0:00:22]} Qxd5 {[%emt 0:00:00]} 20. Rxb7 {[%emt 0:01:13]} Qxf3 {[%emt 0:00:00]} 21. gxf3 {[%emt 0:00:09]} Nd7 {[%emt 0:00:00]} 22. Rc2 {[%emt 0:00:38]} Nxe5 {[%emt 0:00:00]} 23. dxe5 {[%emt 0:00:11]} c5 {[%emt 0:00:00]} 24. Ne4 {[%emt 0:00:27]} Be7 {[%emt 0:00:00]} 25. f4 {[%emt 0:01:15]} f5 {[%emt 0:00:00]} 26. exf6 {[%emt 1:20:34]} gxf6 {[%emt 0:00:00]} 27. Re2 {[%emt 0:00:00]} Rg8+ {[%emt 0:00:00]} 28. Kf1 {[%emt 0:00:00]} Rb8 {[%emt 0:00:00]} 29. Reb2 {[%emt 0:00:00]} Rxb7 {[%emt 0:00:00]} 30. Rxb7 {[%emt 0:00:00]} f5 {[%emt 0:00:00]} 31. Nc3 {[%emt 0:00:00]} Bf6 {[%emt 0:00:00]} 32. Nb5 {[%emt 0:00:00]} Rg7 {[%emt 0:00:00]} 33. Rxa7 {[%emt 0:00:00]} Rxa7 {[%emt 0:00:00]} 34. Nxa7 {[%emt 0:00:00]} Kd7 {[%emt 0:00:00]} 35. Ke2 {[%emt 0:00:00]} Kc7 {[%emt 0:00:00]} 36. Nb5+ {[%emt 0:00:00]} Kb6 {[%emt 0:00:00]} 37. a4 {[%emt 0:00:00]} Nc7 {[%emt 0:00:00]} 38. Nxc7 {[%emt 0:00:00]} Kxc7 {[%emt 0:00:00]} 39. Kd3 {[%emt 0:00:00]} Bd4 {[%emt 0:00:00]} 40. f3 {[%emt 0:00:00]} Kb6 {[%emt 0:00:00]} 41. Kc4 {[%emt 0:00:00]} Ka5 {[%emt 0:00:00]} 42. Kb3 {[%emt 0:00:00]} Be3 {[%emt 0:00:00]} 43. Ka3 {[%emt 0:00:00]} Bxf4 {[%emt 0:00:00]} 44. Kb3 {[%emt 0:00:00]} Be3 {[%emt 0:00:00]} 0-1

[Event "Lueneburg Open-B 2019"]
[Site "Lueneburg"]
[Date "2019.08.04"]
[Round "2.9"]
[White "Neumann, Lutz"]
[Black "Rempe, Mieke"]
[Result "0-1"]
[ECO "B17"]
[WhiteElo "1784"]
[BlackElo "1558"]
[Annotator "NA"]
[PlyCount "120"]
[EventDate "2019.08.03"]
[EventType "swiss"]
[EventCountry "GER"]
[SourceTitle "playchess.com"]
[Source "ChessBase"]
[SourceQuality "1"]
[TimeControl "40/5400+30:1800+30"]

1. e4 {[%emt 0:00:00]} c6 {[%emt 0:00:00]} 2. d4 {[%emt 0:00:00]} d5 {[%emt 0:00:29]} 3. Nc3 {[%emt 0:00:00]} dxe4 {[%emt 0:00:33]} 4. Nxe4 {[%emt 0:00:00]} Nd7 {[%emt 0:00:45]} 5. Bc4 {[%emt 0:00:08]} Ngf6 {[%emt 0:04:26]} 6. Ng5 {[%emt 0:00:49]} e6 {[%emt 0:01:33]} 7. Qe2 {[%emt 0:00:58]} Qe7 {[%emt 0:07:50]} 8. N1f3 {[%emt 0:07:48]} h6 {[%emt 0:01:03]} 9. Nh3 {[%emt 0:03:52]} Nb6 {[%emt 0:01:47]} 10. Bb3 {[%emt 0:00:28]} Bd7 {[%emt 0:01:09]} 11. Ne5 {[%emt 0:04:49]} O-O-O {[%emt 0:01:49]} 12. Nf4 {[%emt 0:05:13]} g5 {[%emt 0:01:26]} 13. Nfd3 {[%emt 0:02:00]} Be8 {[%emt 0:04:15]} 14. c3 {[%emt 0:01:53]} Nfd7 {[%emt 0:00:39]} 15. Bd2 {[%emt 0:05:26]} Bg7 {[%emt 0:06:17]} 16. O-O-O {[%emt 0:01:11]} a5 {[%emt 0:01:02]} 17. f4 {[%emt 0:05:12]} a4 {[%emt 0:01:50]} 18. Bc2 {[%emt 0:00:37]} Bxe5 {[%emt 0:01:04]} 19. Nxe5 {[%emt 0:05:47]} Nxe5 {[%emt 0:03:33]} 20. Qxe5 {[%emt 0:03:08]} f6 {[%emt 0:00:51]} 21. Qe2 {[%emt 0:02:56]} a3 {[%emt 0:00:37]} 22. b3 {[%emt 0:00:23]} Nd5 {[%emt 0:00:33]} 23. f5 {[%emt 0:05:09]} e5 {[%emt 0:01:54]} 24. dxe5 {[%emt 0:02:02]} Qc5 {[%emt 0:01:57]} 25. Qc4 {[%emt 0:10:17]} Qf2 {[%emt 0:02:54]} 26. e6 {[%emt 0:06:20]} Qxg2 {[%emt 0:04:55]} 27. Be4 {[%emt 0:02:03]} Qf2 {[%emt 0:00:13]} 28. Rdf1 {[%emt 0:02:32]} Qb6 {[%emt 0:03:20]} 29. Qd4 {[%emt 0:06:31]} Qxd4 {[%emt 0:02:16]} 30. cxd4 {[%emt 0:00:06]} Rh7 {[%emt 0:03:26]} 31. Ba5 {[%emt 0:04:16]} b6 {[%emt 0:00:32]} 32. Bd2 {[%emt 0:01:42]} Nc7 {[%emt 0:01:55]} 33. Bc3 {[%emt 0:03:44]} Nd5 {[%emt 0:00:12]} 34. Bxd5 {[%emt 0:00:59]} Rxd5 {[%emt 0:00:07]} 35. Rf2 {[%emt 0:01:14]} c5 {[%emt 0:00:50]} 36. dxc5 {[%emt 0:00:47]} Rxc5 {[%emt 0:01:02]} 37. Kd2 {[%emt 0:00:15]} Bc6 {[%emt 0:00:54]} 38. Rc1 {[%emt 0:00:42]} Be4 {[%emt 0:01:17]} 39. Bxf6 {[%emt 0:00:30]} Rxc1 {[%emt 0:00:24]} 40. Kxc1 {[%emt 0:00:12]} Rc7+ {[%emt 0:00:12]} 41. Kd1 {[%emt 0:31:49]} Rc5 {[%emt 0:30:29]} 42. Rd2 {[%emt 0:05:39]} Rxf5 {[%emt 0:02:26]} 43. e7 {[%emt 0:00:00]} Bc6 {[%emt 0:00:00]} 44. Rc2 {[%emt 0:00:00]} Rc5 {[%emt 0:00:00]} 45. b4 {[%emt 0:00:00]} Rxc2 {[%emt 0:00:00]} 46. Kxc2 {[%emt 0:00:00]} Kd7 {[%emt 0:00:00]} 47. Kb3 {[%emt 0:00:00]} Ke6 {[%emt 0:00:00]} 48. Bg7 {[%emt 0:00:00]} h5 {[%emt 0:00:00]} 49. Bh6 {[%emt 0:00:00]} g4 {[%emt 0:00:00]} 50. Bg5 {[%emt 0:00:00]} Kf5 {[%emt 0:00:00]} 51. Bh4 {[%emt 0:00:00]} Kf4 {[%emt 0:00:00]} 52. Kxa3 {[%emt 0:00:00]} Kf3 {[%emt 0:00:00]} 53. Kb3 {[%emt 0:00:00]} Kg2 {[%emt 0:00:00]} 54. Bg3 {[%emt 0:00:00]} h4 {[%emt 0:00:00]} 55. Bxh4 {[%emt 0:00:00]} Kxh2 {[%emt 0:00:00]} 56. Bf6 {[%emt 0:00:00]} g3 {[%emt 0:00:00]} 57. Be5 {[%emt 0:00:00]} Kh3 {[%emt 0:00:00]} 58. a4 {[%emt 0:00:00]} g2 {[%emt 0:00:00]} 59. Bd4 {[%emt 0:00:00]} Kg3 {[%emt 0:44:44]} 60. Kc3 {[%emt 0:10:33]} Kh2 {[%emt 0:00:00]} 0-1

[Event "Lueneburg Open-B 2019"]
[Site "Lueneburg"]
[Date "2019.08.04"]
[Round "2.10"]
[White "Kasipour Azbari, Seyed Arvin"]
[Black "Schulze, Tim"]
[Result "1-0"]
[ECO "C11"]
[WhiteElo "1765"]
[BlackElo "1481"]
[Annotator "NA"]
[PlyCount "57"]
[EventDate "2019.08.03"]
[EventType "swiss"]
[EventCountry "GER"]
[SourceTitle "playchess.com"]
[Source "ChessBase"]
[SourceQuality "1"]
[TimeControl "40/5400+30:1800+30"]

1. e4 {[%emt 0:00:13]} e6 {[%emt 0:00:00]} 2. d4 {[%emt 0:00:04]} d5 {[%emt 0:00:00]} 3. Nc3 {[%emt 0:00:04]} Nf6 {[%emt 0:00:00]} 4. e5 {[%emt 0:00:04]} Nfd7 {[%emt 0:00:00]} 5. Nf3 {[%emt 0:00:05]} c5 {[%emt 0:00:06]} 6. Bg5 {[%emt 0:00:06]} Qb6 {[%emt 0:01:31]} 7. dxc5 {[%emt 0:00:08]} Bxc5 {[%emt 0:04:36]} 8. Qd2 {[%emt 0:00:05]} Nc6 {[%emt 0:04:23]} 9. O-O-O {[%emt 0:01:06]} Be7 {[%emt 0:13:43]} 10. Bxe7 {[%emt 0:01:03]} Nxe7 {[%emt 0:00:32]} 11. Qg5 {[%emt 0:01:56]} Ng6 {[%emt 0:06:29]} 12. Bd3 {[%emt 0:02:58]} Nc5 {[%emt 0:04:50]} 13. Bxg6 {[%emt 0:00:42]} hxg6 {[%emt 0:00:48]} 14. h4 {[%emt 0:03:43]} Rh5 {[%emt 0:11:51]} 15. Qd2 {[%emt 0:08:03]} Bd7 {[%emt 0:05:34]} 16. g4 {[%emt 0:01:06]} Rh8 {[%emt 0:00:25]} 17. Qg5 {[%emt 0:15:46]} Qd8 {[%emt 0:03:32]} 18. Qf4 {[%emt 0:08:30]} Qe7 {[%emt 0:04:25]} 19. Nd4 {[%emt 0:09:06]} a6 {[%emt 0:05:29]} 20. h5 {[%emt 0:04:45]} gxh5 {[%emt 0:02:57]} 21. gxh5 {[%emt 0:00:21]} O-O-O {[%emt 0:02:40]} 22. Nb3 {[%emt 0:03:26]} Nxb3+ {[%emt 0:01:16]} 23. cxb3 {[%emt 0:00:14]} f6 {[%emt 0:00:18]} 24. Kb1 {[%emt 0:06:41]} Rdf8 {[%emt 0:01:32]} 25. Rc1 {[%emt 0:03:03]} Bc6 {[%emt 0:02:45]} 26. Na4 {[%emt 0:02:15]} fxe5 {[%emt 0:00:18]} 27. Qxe5 {[%emt 0:00:30]} Rf5 {[%emt 0:07:05]} 28. Nb6+ {[%emt 0:00:56]} Kd8 {[%emt 0:00:27]} 29. Qb8# {[%emt 0:00:11]} 1-0

[Event "Lueneburg Open-B 2019"]
[Site "Lueneburg"]
[Date "2019.08.04"]
[Round "2.11"]
[White "Gerdau, Niklas"]
[Black "Raedisch, Peter"]
[Result "1/2-1/2"]
[ECO "C52"]
[WhiteElo "1704"]
[BlackElo "1595"]
[Annotator "NA"]
[PlyCount "103"]
[EventDate "2019.08.03"]
[EventType "swiss"]
[EventCountry "GER"]
[SourceTitle "playchess.com"]
[Source "ChessBase"]
[SourceQuality "1"]
[TimeControl "40/5400+30:1800+30"]

1. e4 {[%emt 0:00:00]} e5 {[%emt 0:00:27]} 2. Nf3 {[%emt 0:00:00]} Nc6 {[%emt 0:00:30]} 3. Bc4 {[%emt 0:00:16]} Bc5 {[%emt 0:00:29]} 4. b4 {[%emt 0:00:08]} Bxb4 {[%emt 0:01:04]} 5. c3 {[%emt 0:00:12]} Ba5 {[%emt 0:00:17]} 6. d4 {[%emt 0:00:04]} Qe7 {[%emt 0:01:20]} 7. d5 {[%emt 0:03:50]} Nd8 {[%emt 0:06:15]} 8. O-O {[%emt 0:06:49]} Bb6 {[%emt 0:00:26]} 9. Bb5 {[%emt 0:04:11]} Nf6 {[%emt 0:02:40]} 10. Qd3 {[%emt 0:13:21]} O-O {[%emt 0:00:44]} 11. Ba3 {[%emt 0:00:43]} d6 {[%emt 0:01:06]} 12. Nbd2 {[%emt 0:01:50]} a6 {[%emt 0:04:47]} 13. Ba4 {[%emt 0:02:22]} Ba7 {[%emt 0:02:01]} 14. c4 {[%emt 0:04:01]} Nd7 {[%emt 0:01:35]} 15. Bc2 {[%emt 0:03:36]} Nc5 {[%emt 0:00:53]} 16. Qe2 {[%emt 0:00:28]} Bg4 {[%emt 0:01:56]} 17. h3 {[%emt 0:00:45]} Bh5 {[%emt 0:00:19]} 18. Rab1 {[%emt 0:04:01]} Qd7 {[%emt 0:04:53]} 19. Nb3 {[%emt 0:03:29]} Bxf3 {[%emt 0:08:44]} 20. Qxf3 {[%emt 0:01:31]} Nxb3 {[%emt 0:02:23]} 21. Rxb3 {[%emt 0:01:11]} Bd4 {[%emt 0:03:56]} 22. Rc1 {[%emt 0:07:28]} b6 {[%emt 0:05:10]} 23. Qh5 {[%emt 0:01:00]} f6 {[%emt 0:00:58]} 24. Rg3 {[%emt 0:02:22]} Qf7 {[%emt 0:01:22]} 25. Qf5 {[%emt 0:02:51]} Kh8 {[%emt 0:01:12]} 26. Ba4 {[%emt 0:01:02]} g6 {[%emt 0:02:10]} 27. Qf3 {[%emt 0:05:32]} f5 {[%emt 0:00:31]} 28. Bc2 {[%emt 0:02:41]} fxe4 {[%emt 0:00:24]} 29. Bxe4 {[%emt 0:00:09]} Qxf3 {[%emt 0:00:33]} 30. Rxf3 {[%emt 0:00:05]} Nb7 {[%emt 0:02:09]} 31. Rc2 {[%emt 0:02:10]} Nc5 {[%emt 0:00:56]} 32. Rxf8+ {[%emt 0:00:13]} Rxf8 {[%emt 0:00:25]} 33. Bf3 {[%emt 0:00:31]} Nd3 {[%emt 0:00:47]} 34. Rd2 {[%emt 0:03:56]} Nc5 {[%emt 0:07:21]} 35. Bc1 {[%emt 0:03:31]} Kg7 {[%emt 0:01:12]} 36. Kf1 {[%emt 0:01:23]} h5 {[%emt 0:00:51]} 37. Re2 {[%emt 0:04:58]} Nd3 {[%emt 0:01:17]} 38. Bg5 {[%emt 0:02:44]} Nf4 {[%emt 0:00:32]} 39. Bxf4 {[%emt 0:04:09]} Rxf4 {[%emt 0:00:21]} 40. Re4 {[%emt 0:00:09]} h4 {[%emt 0:05:55]} 41. Ke2 {[%emt 0:33:21]} g5 {[%emt 0:30:11]} 42. Rxf4 {[%emt 0:03:57]} exf4 {[%emt 0:00:33]} 43. Kd3 {[%emt 0:01:07]} Bxf2 {[%emt 0:00:21]} 44. a4 {[%emt 0:00:10]} Kf6 {[%emt 0:00:31]} 45. Ke4 {[%emt 0:00:06]} Bc5 {[%emt 0:00:53]} 46. Bg4 {[%emt 0:00:24]} Ba3 {[%emt 0:03:27]} 47. Bf3 {[%emt 0:00:28]} Bb2 {[%emt 0:00:28]} 48. Bg4 {[%emt 0:00:15]} Ke7 {[%emt 0:05:18]} 49. Bf5 {[%emt 0:00:19]} Kf6 {[%emt 0:03:14]} 50. Bg4 {[%emt 0:00:05]} Bc1 {[%emt 0:00:04]} 51. Bf3 {[%emt 0:00:06]} c6 {[%emt 0:19:39]} 52. dxc6 {[%emt 0:06:00]} 1/2-1/2

[Event "Lueneburg Open-B 2019"]
[Site "Lueneburg"]
[Date "2019.08.04"]
[Round "2.12"]
[White "Geissler, Karl-Heinz"]
[Black "Ramme, Georg"]
[Result "0-1"]
[ECO "D04"]
[WhiteElo "1581"]
[BlackElo "1660"]
[Annotator "NA"]
[PlyCount "116"]
[EventDate "2019.08.03"]
[EventType "swiss"]
[EventCountry "GER"]
[SourceTitle "playchess.com"]
[Source "ChessBase"]
[SourceQuality "1"]
[TimeControl "40/5400+30:1800+30"]

1. Nf3 {[%emt 0:00:00]} Nf6 {[%emt 0:00:00]} 2. d4 {[%emt 0:00:00]} d5 {[%emt 0:00:00]} 3. e3 {[%emt 0:00:02]} Bg4 {[%emt 0:00:53]} 4. Be2 {[%emt 0:00:18]} Nbd7 {[%emt 0:01:02]} 5. Nbd2 {[%emt 0:00:32]} e6 {[%emt 0:02:20]} 6. a3 {[%emt 0:01:38]} c6 {[%emt 0:02:46]} 7. O-O {[%emt 0:00:50]} Be7 {[%emt 0:02:46]} 8. c4 {[%emt 0:00:38]} O-O {[%emt 0:00:28]} 9. cxd5 {[%emt 0:04:15]} exd5 {[%emt 0:01:32]} 10. b4 {[%emt 0:01:45]} Rc8 {[%emt 0:06:37]} 11. Bb2 {[%emt 0:00:42]} a6 {[%emt 0:03:29]} 12. Re1 {[%emt 0:01:43]} Re8 {[%emt 0:00:15]} 13. Nb3 {[%emt 0:02:00]} Bd6 {[%emt 0:05:49]} 14. Qc2 {[%emt 0:05:16]} Ne4 {[%emt 0:15:04]} 15. Nbd2 {[%emt 0:05:19]} Bxf3 {[%emt 0:05:35]} 16. Nxf3 {[%emt 0:03:41]} Re6 {[%emt 0:05:23]} 17. Bd3 {[%emt 0:09:19]} f5 {[%emt 0:05:44]} 18. g3 {[%emt 0:10:43]} Qf6 {[%emt 0:08:44]} 19. Bf1 {[%emt 0:01:54]} g5 {[%emt 0:01:14]} 20. Re2 {[%emt 0:04:07]} Rce8 {[%emt 0:03:19]} 21. Rae1 {[%emt 0:01:28]} R8e7 {[%emt 0:00:21]} 22. Bg2 {[%emt 0:01:34]} Rg7 {[%emt 0:04:58]} 23. Nd2 {[%emt 0:06:08]} Nxd2 {[%emt 0:03:47]} 24. Qxd2 {[%emt 0:00:45]} Qg6 {[%emt 0:02:57]} 25. Qc2 {[%emt 0:05:51]} Nf6 {[%emt 0:01:29]} 26. f3 {[%emt 0:03:50]} Rge7 {[%emt 0:02:04]} 27. Bc1 {[%emt 0:04:47]} h6 {[%emt 0:01:00]} 28. g4 {[%emt 0:05:33]} Nxg4 {[%emt 0:02:16]} 29. fxg4 {[%emt 0:01:36]} fxg4 {[%emt 0:00:09]} 30. Qxg6+ {[%emt 0:01:34]} Rxg6 {[%emt 0:00:02]} 31. e4 {[%emt 0:00:49]} Rge6 {[%emt 0:00:19]} 32. e5 {[%emt 0:00:50]} Bc7 {[%emt 0:00:12]} 33. Rf1 {[%emt 0:00:54]} Bb6 {[%emt 0:00:15]} 34. Be3 {[%emt 0:00:30]} Kg7 {[%emt 0:00:55]} 35. Ref2 {[%emt 0:01:11]} Rxe5 {[%emt 0:02:15]} 36. dxe5 {[%emt 0:03:12]} Bxe3 {[%emt 0:00:10]} 37. Kh1 {[%emt 0:04:25]} Bxf2 {[%emt 0:00:41]} 38. Rxf2 {[%emt 0:00:11]} Rxe5 {[%emt 0:00:07]} 39. Bf1 {[%emt 0:00:59]} Re1 {[%emt 0:03:46]} 40. Kg2 {[%emt 0:00:27]} Ra1 {[%emt 0:00:17]} 41. Kg3 {[%emt 0:30:34]} h5 {[%emt 0:30:16]} 42. Kg2 {[%emt 0:03:00]} Rxa3 {[%emt 0:00:55]} 43. Re2 {[%emt 0:01:08]} Kf7 {[%emt 0:01:40]} 44. Rf2+ {[%emt 0:01:03]} Rf3 {[%emt 0:04:13]} 45. Re2 {[%emt 0:00:20]} Rf4 {[%emt 0:00:33]} 46. Rb2 {[%emt 0:00:12]} Kf6 {[%emt 0:00:50]} 47. Bd3 {[%emt 0:00:20]} Rd4 {[%emt 0:03:31]} 48. Bh7 {[%emt 0:00:34]} Rc4 {[%emt 0:00:00]} 49. Bd3 {[%emt 0:00:00]} Rc3 {[%emt 0:00:00]} 50. Bh7 {[%emt 0:00:00]} d4 {[%emt 0:00:00]} 51. Rd2 {[%emt 0:00:00]} Ke5 {[%emt 0:00:00]} 52. Rf2 {[%emt 0:00:00]} Rf3 {[%emt 0:00:00]} 53. Re2+ {[%emt 0:00:00]} Re3 {[%emt 0:00:00]} 54. Rf2 {[%emt 0:00:00]} d3 {[%emt 0:00:00]} 55. Rf8 {[%emt 0:00:00]} h4 {[%emt 0:00:00]} 56. Rg8 {[%emt 0:00:00]} d2 {[%emt 0:00:00]} 57. Rxg5+ {[%emt 0:00:00]} Kd6 {[%emt 0:00:00]} 58. Rg8 {[%emt 0:00:00]} Re2+ {[%emt 0:00:00]} 0-1

[Event "Lueneburg Open-B 2019"]
[Site "Lueneburg"]
[Date "2019.08.04"]
[Round "2.13"]
[White "Rennkamp, David"]
[Black "Krause, Holger"]
[Result "0-1"]
[ECO "C42"]
[WhiteElo "1355"]
[BlackElo "1639"]
[Annotator "NA"]
[PlyCount "76"]
[EventDate "2019.08.03"]
[EventType "swiss"]
[EventCountry "GER"]
[SourceTitle "playchess.com"]
[Source "ChessBase"]
[SourceQuality "1"]
[TimeControl "40/5400+30:1800+30"]

1. e4 {[%emt 0:00:00]} e5 {[%emt 0:00:00]} 2. Nf3 {[%emt 0:00:00]} Nf6 {[%emt 0:00:00]} 3. Nc3 {[%emt 0:00:11]} Bb4 {[%emt 0:00:27]} 4. d3 {[%emt 0:00:19]} d5 {[%emt 0:00:16]} 5. exd5 {[%emt 0:01:10]} Nxd5 {[%emt 0:00:21]} 6. Bd2 {[%emt 0:00:17]} Nc6 {[%emt 0:00:52]} 7. Nxd5 {[%emt 0:04:17]} Bxd2+ {[%emt 0:01:13]} 8. Qxd2 {[%emt 0:00:22]} Qxd5 {[%emt 0:00:06]} 9. Be2 {[%emt 0:02:44]} O-O {[%emt 0:01:51]} 10. O-O {[%emt 0:01:51]} Re8 {[%emt 0:03:09]} 11. Rfe1 {[%emt 0:03:57]} Bd7 {[%emt 0:03:26]} 12. Qe3 {[%emt 0:08:25]} Rad8 {[%emt 0:12:07]} 13. Qe4 {[%emt 0:01:43]} Qxe4 {[%emt 0:07:46]} 14. dxe4 {[%emt 0:00:12]} Bg4 {[%emt 0:01:17]} 15. h3 {[%emt 0:02:11]} Bh5 {[%emt 0:04:20]} 16. g4 {[%emt 0:08:01]} Bg6 {[%emt 0:00:16]} 17. Bb5 {[%emt 0:00:09]} f6 {[%emt 0:07:54]} 18. Bxc6 {[%emt 0:03:29]} bxc6 {[%emt 0:00:12]} 19. c3 {[%emt 0:00:23]} Rd3 {[%emt 0:01:56]} 20. Kg2 {[%emt 0:02:21]} Red8 {[%emt 0:03:28]} 21. Re2 {[%emt 0:01:45]} Bf7 {[%emt 0:03:59]} 22. Ne1 {[%emt 0:03:53]} R3d6 {[%emt 0:01:27]} 23. b3 {[%emt 0:04:14]} Kf8 {[%emt 0:03:21]} 24. Nc2 {[%emt 0:02:37]} Bg6 {[%emt 0:07:57]} 25. f3 {[%emt 0:01:52]} Rd2 {[%emt 0:02:31]} 26. Kf2 {[%emt 0:01:41]} a5 {[%emt 0:01:32]} 27. Rae1 {[%emt 0:04:43]} R2d6 {[%emt 0:02:40]} 28. Na3 {[%emt 0:03:07]} Bf7 {[%emt 0:00:39]} 29. Nc2 {[%emt 0:00:32]} Ra8 {[%emt 0:03:42]} 30. Ke3 {[%emt 0:06:17]} a4 {[%emt 0:02:08]} 31. c4 {[%emt 0:00:40]} axb3 {[%emt 0:00:44]} 32. axb3 {[%emt 0:00:16]} Rad8 {[%emt 0:00:50]} 33. Kf2 {[%emt 0:03:10]} Rd3 {[%emt 0:01:19]} 34. Re3 {[%emt 0:00:15]} Rd2+ {[%emt 0:00:31]} 35. R1e2 {[%emt 0:00:10]} Rd1 {[%emt 0:01:05]} 36. Nb4 {[%emt 0:01:13]} Be8 {[%emt 0:01:31]} 37. Rb2 {[%emt 0:02:38]} Rh1 {[%emt 0:03:18]} 38. Re1 {[%emt 0:02:22]} Rh2+ {[%emt 0:00:19]} 0-1

[Event "Lueneburg Open-B 2019"]
[Site "Lueneburg"]
[Date "2019.08.04"]
[Round "2.14"]
[White "Vogel, Elisabeth"]
[Black "Thomas, Jeremy"]
[Result "0-1"]
[ECO "B90"]
[WhiteElo "1277"]
[BlackElo "1717"]
[Annotator "NA"]
[PlyCount "62"]
[EventDate "2019.08.03"]
[EventType "swiss"]
[EventCountry "GER"]
[SourceTitle "playchess.com"]
[Source "ChessBase"]
[SourceQuality "1"]
[TimeControl "40/5400+30:1800+30"]

1. e4 {[%emt 0:00:00]} c5 {[%emt 0:00:00]} 2. Nf3 {[%emt 0:00:00]} d6 {[%emt 0:00:00]} 3. d4 {[%emt 0:00:00]} cxd4 {[%emt 0:00:01]} 4. Nxd4 {[%emt 0:00:05]} Nf6 {[%emt 0:00:05]} 5. Nc3 {[%emt 0:00:11]} a6 {[%emt 0:00:06]} 6. f3 {[%emt 0:01:59]} e5 {[%emt 0:00:42]} 7. Nb3 {[%emt 0:00:07]} Be6 {[%emt 0:00:16]} 8. Be3 {[%emt 0:00:44]} Be7 {[%emt 0:00:18]} 9. Qd2 {[%emt 0:03:52]} b5 {[%emt 0:02:39]} 10. O-O-O {[%emt 0:00:43]} Nbd7 {[%emt 0:02:04]} 11. Kb1 {[%emt 0:05:51]} Nb6 {[%emt 0:02:02]} 12. g4 {[%emt 0:04:12]} b4 {[%emt 0:02:00]} 13. Bxb6 {[%emt 0:00:56]} Qxb6 {[%emt 0:01:21]} 14. Nd5 {[%emt 0:00:16]} Nxd5 {[%emt 0:00:41]} 15. exd5 {[%emt 0:00:10]} Bd7 {[%emt 0:00:22]} 16. h4 {[%emt 0:04:08]} a5 {[%emt 0:02:21]} 17. Bd3 {[%emt 0:12:55]} a4 {[%emt 0:01:11]} 18. Nc1 {[%emt 0:00:05]} a3 {[%emt 0:02:28]} 19. Bc4 {[%emt 0:05:22]} axb2 {[%emt 0:01:58]} 20. Kxb2 {[%emt 0:01:59]} Ra3 {[%emt 0:01:16]} 21. Bb3 {[%emt 0:00:54]} Ba4 {[%emt 0:08:25]} 22. Rh2 {[%emt 0:06:46]} O-O {[%emt 0:03:33]} 23. Qe1 {[%emt 0:03:24]} Rc8 {[%emt 0:08:10]} 24. Rd3 {[%emt 0:06:37]} Bxb3 {[%emt 0:00:54]} 25. cxb3 {[%emt 0:01:25]} Ra5 {[%emt 0:01:09]} 26. Kb1 {[%emt 0:08:38]} Rac5 {[%emt 0:00:46]} 27. Rd1 {[%emt 0:00:58]} Rc3 {[%emt 0:03:24]} 28. Qh1 {[%emt 0:11:51]} Qe3 {[%emt 0:01:04]} 29. Re1 {[%emt 0:09:44]} Qxf3 {[%emt 0:01:52]} 30. Qxf3 {[%emt 0:00:07]} Rxf3 {[%emt 0:00:06]} 31. g5 {[%emt 0:00:53]} Rfc3 {[%emt 0:02:08]} 0-1

[Event "Lueneburg Open-B 2019"]
[Site "Lueneburg"]
[Date "2019.08.04"]
[Round "2.15"]
[White "Mi, Gufeng"]
[Black "Schulze, Lukas"]
[Result "0-1"]
[ECO "D00"]
[WhiteElo "1564"]
[BlackElo "1724"]
[Annotator "NA"]
[PlyCount "21"]
[EventDate "2019.08.03"]
[EventType "swiss"]
[EventCountry "GER"]
[SourceTitle "playchess.com"]
[Source "ChessBase"]
[SourceQuality "1"]
[TimeControl "40/5400+30:1800+30"]

1. d4 {[%emt 0:00:00]} Nf6 {[%emt 0:00:00]} 2. Bf4 {[%emt 0:00:00]} c5 {[%emt 0:00:10]} 3. e3 {[%emt 0:00:32]} d5 {[%emt 0:01:33]} 4. c3 {[%emt 0:01:40]} g6 {[%emt 0:01:16]} 5. h3 {[%emt 0:00:47]} Qb6 {[%emt 0:02:36]} 6. Qc2 {[%emt 0:01:30]} Bf5 {[%emt 0:00:56]} 7. Qc1 {[%emt 0:01:39]} Nc6 {[%emt 0:02:29]} 8. Nd2 {[%emt 0:01:03]} Rc8 {[%emt 0:01:27]} 9. Ngf3 {[%emt 0:05:00]} Bg7 {[%emt 0:01:20]} 10. g4 {[%emt 0:00:45]} Be6 {[%emt 0:08:13]} 11. Nb3 {[%emt 0:02:55]} 0-1